bitfinex/quotes_ETHUSD_20241119
["timestamp","ask_amount","ask_price","bid_price","bid_amount"]
[1732002278375,3.20262,3122.5,3121.9,4.80974]
[1732002278694,3.20262,3122.5,3122.0,3.20305]
[1732002278830,3.20262,3122.5,3122.1,0.3198]
[1732002279177,3.20262,3122.5,3122.0,3.20305]
[1732002279178,3.20283,3122.3,3121.5,3.20358]
[1732002279370,3.20283,3122.3,3121.6,3.20341]
[1732002279529,3.20287,3122.2,3121.6,3.20341]
[1732002279876,3.20287,3122.2,3121.6,3.876089]
[1732002280081,0.56,3123.1,3121.6,3.876089]
[1732002280082,0.320182,3123.2,3122.1,0.8163]
[1732002280235,0.8021,3123.3,3122.4,3.20262]
[1732002280236,3.20201,3123.1,3122.4,3.20262]
[1732002280426,3.202,3123.1,3122.5,3.52234]
[1732002281243,3.202,3123.1,3122.5,0.3198]
[1732002281647,4.00385,3123.3,3122.7,3.52209]
[1732002281899,4.00385,3123.3,3122.7,4.33299]
[1732002283283,3.20185,3123.2,3122.7,4.33299]
[1732002283484,3.20185,3123.2,3122.7,1.1307]
[1732002285038,4.00386,3123.3,3122.7,4.33302]
[1732002286236,0.8021,3123.3,3122.9,0.3198]
[1732002288552,4.00384,3123.3,3122.8,0.3198]
[1732002289300,0.8021,3123.3,3122.8,3.52202]
[1732002289745,3.20154,3123.5,3123.0,0.3198]
[1732002289938,0.33432002,3123.2,3123.0,0.3198]
[1732002290156,0.33432002,3123.2,3123.0,3.52184]
[1732002290649,0.33432002,3123.2,3123.0,0.671984]
[1732002290957,0.33432002,3123.2,3122.9,0.3198]
[1732002291952,0.33432002,3123.2,3122.8,3.52197]
[1732002292601,0.33432002,3123.2,3122.8,0.3198]
[1732002293336,0.33432002,3123.2,3122.8,3.52202]
[1732002294354,0.33432002,3123.2,3122.8,1.07332]
[1732002294531,0.33432002,3123.2,3123.0,0.3198]
[1732002294734,3.20194,3123.1,3123.0,0.3198]
[1732002295548,3.20194,3123.1,3122.5,0.3198]
[1732002296249,3.20194,3123.1,3122.5,3.52234]
[1732002297247,3.20219,3122.9,3122.5,0.3198]
[1732002297452,3.20231,3122.8,3122.5,0.3198]
[1732002298449,3.20211,3123.0,3122.5,0.3198]
[1732002298952,3.20215,3122.9,3122.5,0.3198]
[1732002299909,3.2023,3122.8,3122.5,0.3198]
[1732002300656,3.20245,3122.6,3122.5,0.3198]
[1732002301352,0.756267,3123.1,3122.5,0.3198]
[1732002301567,0.756267,3123.1,3121.7,2.87693111]
[1732002301568,0.01,3122.1,3120.7,3.97109]
[1732002301717,3.20358,3121.5,3121.4,0.3198]
[1732002301920,3.20399,3121.1,3120.7,0.7667]
[1732002302115,0.7578,3121.2,3120.4,3.20465]
[1732002302418,3.2043,3120.9,3120.3,3.2048]
[1732002302623,3.20407,3121.1,3120.4,0.3198]
[1732002302948,3.20407,3121.1,3120.6,0.3198]
[1732002303849,3.20407,3121.1,3120.5,0.3198]
[1732002304232,0.7578,3121.2,3120.5,3.52438]
[1732002304842,0.7578,3121.2,3120.7,0.3198]
[1732002305241,0.7578,3121.2,3120.7,3.5242]
[1732002305475,0.7578,3121.2,3120.6,3.20449]
[1732002305686,0.7578,3121.2,3120.4,3.20468]
[1732002305888,0.7578,3121.2,3120.6,3.2045]
[1732002306090,0.7578,3121.2,3120.6,6.40892]
[1732002306243,0.7578,3121.2,3120.6,3.20442]
[1732002306583,0.33446435,3121.4,3121.0,3.20403]
[1732002308446,0.33446435,3121.4,3121.3,3.20379]
[1732002308688,3.20267,3122.4,3121.7,3.20333]
[1732002308886,0.38514481,3122.3,3121.7,3.20333]
[1732002309047,0.38514481,3122.3,3121.8,3.20326]
[1732002309785,0.38514481,3122.3,3121.9,3.20316]
[1732002309992,3.97516,3122.6,3121.9,3.20309]
[1732002310171,3.20257,3122.5,3121.3,4.01026]
[1732002310350,0.717756,3122.5,3121.9,3.20309]
[1732002310866,3.20269,3122.4,3121.7,3.20334]
[1732002311071,3.717756,3122.5,3121.9,3.20316]
[1732002311285,0.44635926,3122.4,3121.9,3.20316]
[1732002311586,0.44635926,3122.4,3121.7,3.20334]
[1732002311587,3.20277,3122.3,3121.7,3.20334]
[1732002311895,3.20287,3122.2,3121.5,3.20355]
[1732002312043,3.88805993,3122.2,3121.5,3.20355]
[1732002312249,3.88805993,3122.2,3121.6,3.20347]
[1732002312556,0.7727,3122.6,3122.0,3.20298]
[1732002312888,3.0,3122.8,3122.3,3.20275]
[1732002313042,0.7631,3122.9,3122.3,3.20275]
[1732002313691,3.20232,3122.8,3122.1,3.20289]
[1732002313984,0.396542,3122.7,3122.2,3.20282]
[1732002314147,0.396542,3122.7,3122.1,3.20289]
[1732002314582,0.396542,3122.7,3122.2,3.20286]
[1732002315648,3.20232,3122.8,3122.2,3.20286]
[1732002316147,3.20248,3122.6,3122.0,4.01489]
[1732002316456,3.20249,3122.6,3122.0,4.01497]
[1732002316886,3.20232,3122.8,3122.0,1.53371]
[1732002317194,3.20232,3122.8,3122.2,3.20286]
[1732002318547,3.20236,3122.7,3122.2,3.20286]
[1732002318749,3.20225,3122.8,3122.2,3.20286]
[1732002319263,0.7631,3122.9,3122.2,3.20286]
[1732002319517,3.20236,3122.7,3122.2,3.20286]
[1732002319651,1.49082434,3122.9,3122.2,3.20286]
[1732002319854,3.0,3122.8,3122.2,3.20286]
[1732002320049,6.2023,3122.8,3122.2,3.20286]
[1732002320567,3.20242,3122.7,3122.0,4.01495]
[1732002320760,3.20246,3122.6,3121.9,3.20316]
[1732002320968,3.20287,3122.2,3121.7,35.0]
[1732002321163,3.20303,3122.1,3121.4,3.52341]
[1732002321693,3.605227,3122.2,3121.6,3.20348]
[1732002324194,0.33445065,3122.1,3121.6,3.20348]
[1732002324396,0.33445065,3122.1,3121.7,3.20337]
[1732002324562,0.33445065,3122.1,3121.8,3.20325]
[1732002325250,0.33445065,3122.1,3121.4,0.3198]
[1732002325493,0.33445065,3122.1,3121.6,0.3198]
[1732002325694,0.33445065,3122.1,3121.6,3.5232]
[1732002325854,0.33445065,3122.1,3121.8,0.3198]
[1732002326251,0.77023972,3122.1,3121.8,0.3198]
[1732002326577,3.97330972,3122.1,3121.8,0.3198]
[1732002326782,3.53752065,3122.1,3121.8,0.3198]
[1732002327096,3.53752065,3122.1,3121.6,0.3198]
[1732002327799,3.20307,3122.0,3121.8,0.3198]
[1732002328587,3.20307,3122.0,3121.4,3.20367]
[1732002328588,3.20317,3121.9,3121.4,0.3198]
[1732002328957,0.8132,3121.7,3121.4,0.3198]
[1732002329372,3.20349,3121.6,3121.4,0.3198]
[1732002329577,3.20349,3121.6,3121.1,0.3198]
[1732002330310,0.8132,3121.7,3121.1,3.52373]
[1732002330504,0.8132,3121.7,3121.1,3.52372]
[1732002330710,0.401648,3121.6,3121.1,0.3198]
[1732002330891,3.20365,3121.5,3121.1,0.3198]
[1732002331407,0.401648,3121.6,3121.1,0.3198]
[1732002331561,0.8132,3121.7,3121.1,0.3198]
[1732002331562,3.20359,3121.5,3121.1,0.3198]
[1732002331764,3.20356,3121.6,3121.1,0.3198]
[1732002331999,3.20375,3121.4,3121.1,0.3198]
[1732002332609,3.20375,3121.4,3120.9,0.3198]
[1732002332914,3.20356,3121.6,3120.9,0.3198]
[1732002333110,0.401676,3121.5,3120.9,0.3198]
[1732002333295,0.401676,3121.5,3121.1,0.3198]
[1732002333506,3.20356,3121.6,3121.1,0.3198]
[1732002334180,6.40714,3121.6,3121.1,0.3198]
[1732002334382,3.20356,3121.6,3121.1,0.3198]
[1732002335299,3.7995,3122.0,3121.5,3.52331]
[1732002335948,3.0,3122.0,3121.5,6.72682]
[1732002336108,3.0,3122.0,3121.5,3.52331]
[1732002336545,0.8046,3122.2,3121.6,3.2034]
[1732002337117,4.00753,3122.2,3121.5,3.52333]
[1732002337334,4.00753,3122.2,3121.6,3.20348]
[1732002338886,4.00753,3122.2,3121.7,0.8168]
[1732002340290,3.7711,3122.5,3121.8,0.3198]
[1732002340591,3.20277,3122.3,3121.8,0.3198]
[1732002340739,3.20271,3122.4,3121.8,3.52307]
[1732002341180,3.20271,3122.4,3121.8,0.3198]
[1732002341491,3.20271,3122.4,3121.9,3.20317]
[1732002342114,3.20271,3122.4,3121.8,3.52307]
[1732002342990,1.10559174,3122.7,3121.8,3.52307]
[1732002343139,0.41155917,3122.6,3121.8,0.3198]
[1732002343341,3.20275,3122.4,3121.8,3.52307]
[1732002343541,3.20279,3122.3,3121.8,3.52307]
[1732002344885,3.20279,3122.3,3121.8,0.3198]
[1732002345289,3.53692174,3122.7,3122.1,0.8185]
[1732002345455,0.33449174,3122.7,3122.3,3.20276]
[1732002345657,3.20215,3122.9,3122.3,0.3198]
[1732002345874,3.522365,3122.9,3122.3,3.52255]
[1732002346470,3.522365,3122.9,3122.3,3.52249]
[1732002347804,3.20225,3122.8,3122.3,3.52249]
[1732002348160,3.522365,3122.9,3122.3,3.52249]
[1732002348901,3.20258,3122.5,3122.1,0.3198]
[1732002349106,3.20286,3122.2,3122.1,0.3198]
[1732002349880,3.20286,3122.2,3121.8,0.3198]
[1732002351319,3.20269,3122.4,3121.8,3.52306]
[1732002351524,3.20278,3122.3,3121.8,3.52306]
[1732002351873,3.20278,3122.3,3121.8,0.3198]
[1732002352564,3.20303,3122.1,3121.8,0.3198]
[1732002353413,6.40609,3122.1,3121.8,0.3198]
[1732002353618,3.20303,3122.1,3121.7,0.3198]
[1732002354322,0.8027,3122.2,3121.7,0.3198]
[1732002354509,3.20307,3122.0,3121.7,0.3198]
[1732002355920,3.20299,3122.1,3121.7,0.3198]
[1732002356431,0.720859,3122.1,3121.7,0.3198]
[1732002356571,4.00562,3122.2,3121.7,0.3198]
[1732002356778,3.20303,3122.1,3121.7,0.3198]
[1732002357021,3.20307,3122.0,3121.7,0.3198]
[1732002357990,3.20307,3122.0,3121.8,0.3198]
[1732002358224,3.523567,3121.9,3121.8,0.3198]
[1732002358428,0.320307,3121.9,3121.8,0.3198]
[1732002358875,3.523477,3121.9,3121.8,0.3198]
[1732002359077,3.523477,3121.9,3121.1,0.7826]
[1732002359078,3.20367,3121.5,3121.1,0.7826]
[1732002359384,3.20367,3121.5,3120.9,0.7826]
[1732002359634,3.20371,3121.4,3120.9,0.7826]
[1732002359981,3.20371,3121.4,3121.0,0.3198]
[1732002360176,3.20343,3121.7,3121.0,0.3198]
[1732002360483,3.20366,3121.5,3121.0,0.3198]
[1732002360709,0.8268,3121.8,3121.0,0.3198]
[1732002360710,3.20395,3121.2,3121.0,0.3198]
[1732002361451,3.20371,3121.4,3121.0,0.3198]
[1732002361746,3.20376,3121.4,3121.0,0.3198]
[1732002361949,0.33452984,3121.5,3121.0,3.52388]
[1732002362447,3.53812984,3121.5,3121.0,3.52388]
[1732002363204,0.33452984,3121.5,3121.0,3.52388]
[1732002363448,0.33452984,3121.5,3121.2,0.3198]
[1732002364016,0.33452984,3121.5,3121.0,3.20408]
[1732002364017,3.20369,3121.4,3121.0,0.3198]
[1732002364567,3.20353,3121.6,3121.0,0.3198]
[1732002364953,6.40711,3121.6,3121.0,3.5238]
[1732002365111,3.20353,3121.6,3121.0,3.5238]
[1732002365311,3.926892,3121.6,3121.0,3.5238]
[1732002365511,7.130472,3121.6,3121.0,3.5238]
[1732002365743,3.926892,3121.6,3121.0,3.5238]
[1732002365948,3.20339,3121.7,3121.2,3.52361]
[1732002366211,4.03014,3121.8,3121.2,0.3198]
[1732002366642,3.2034,3121.7,3121.2,0.3198]
[1732002366824,0.723354,3121.7,3121.2,0.3198]
[1732002367124,3.20351,3121.6,3121.2,0.3198]
[1732002368407,0.723354,3121.7,3121.2,0.3198]
[1732002368610,4.03012,3121.8,3121.2,0.3198]
[1732002368611,4.03015,3121.8,3121.2,3.52359]
[1732002368855,0.8268,3121.8,3121.2,3.52359]
[1732002369153,0.8268,3121.8,3121.4,3.20368]
[1732002370058,0.8268,3121.8,3121.3,3.52357]
[1732002371029,0.8268,3121.8,3121.5,0.3198]
[1732002371424,3.20307,3122.0,3121.5,0.8245]
[1732002371628,3.20307,3122.0,3121.6,0.3198]
[1732002371812,3.20329,3121.8,3121.6,0.3198]
[1732002372018,3.20329,3121.8,3121.2,0.8035]
[1732002372214,3.20349,3121.6,3121.2,0.8035]
[1732002372516,3.20349,3121.6,3121.3,0.3198]
[1732002372723,3.20329,3121.8,3121.3,0.3198]
[1732002372724,3.20334,3121.8,3121.3,0.3198]
[1732002373070,3.20317,3121.9,3121.3,3.52359]
[1732002373420,3.20332,3121.8,3121.3,0.3198]
[1732002373619,3.20317,3121.9,3121.3,0.3198]
[1732002374059,3.20328,3121.8,3121.3,0.3198]
[1732002374619,5.5087219,3122.3,3121.3,0.3198]
[1732002374620,6.48444423,3122.8,3122.4,0.8245]
[1732002374863,0.33450899,3122.8,3122.4,0.8245]
[1732002375179,3.97089,3123.2,3122.6,3.20244]
[1732002376045,3.97089,3123.2,3122.4,4.02708]
[1732002376243,3.97089,3123.2,3122.5,3.20254]
[1732002377593,3.97089,3123.2,3122.6,3.20245]
[1732002377895,7.17282,3123.2,3122.5,3.20254]
[1732002378046,3.20205,3123.0,3122.5,3.20254]
[1732002378252,3.919232,3123.1,3122.5,3.20254]
[1732002379088,3.20211,3123.0,3122.3,3.20273]
[1732002379294,0.3919392,3122.9,3122.1,3.96094]
[1732002379586,7.16175,3122.8,3122.1,3.96094]
[1732002379743,3.95941,3122.8,3122.1,3.96094]
[1732002379947,3.95941,3122.8,3122.2,3.2028]
[1732002380964,3.95941,3122.8,3122.3,3.20275]
[1732002381870,0.7571,3122.8,3122.4,3.20264]
[1732002383195,3.20246,3122.6,3122.1,0.758]
[1732002383405,3.20246,3122.6,3122.0,3.20304]
[1732002383704,4.02573,3122.5,3121.8,3.97176]
[1732002384191,4.02573,3122.5,3121.8,3.9717]
[1732002384192,0.8231,3122.5,3121.8,3.9717]
[1732002384498,4.02572,3122.5,3121.9,3.20315]
[1732002384718,4.428276,3122.5,3121.9,3.20315]
[1732002385482,4.428276,3122.5,3122.0,0.3198]
[1732002386405,1.225656,3122.5,3121.9,0.3198]
[1732002386566,1.225656,3122.5,3122.0,3.20306]
[1732002388136,0.4428106,3122.4,3121.9,0.3198]
[1732002388286,3.20272,3122.4,3121.9,0.3198]
[1732002388656,3.20278,3122.3,3121.9,0.3198]
[1732002389182,3.20278,3122.3,3121.7,0.3198]
[1732002389428,3.20289,3122.2,3121.7,0.3198]
[1732002389724,3.20298,3122.1,3121.7,0.3198]
[1732002390553,0.3344514,3122.0,3121.7,0.3198]
[1732002390903,3.5375614,3122.0,3121.7,0.3198]
[1732002392610,0.3344514,3122.0,3121.7,0.3198]
[1732002394623,3.5376014,3122.0,3121.7,0.3198]
[1732002395630,3.20336,3121.8,3121.3,0.7533]
[1732002395837,0.813,3121.9,3120.9,0.7842]
[1732002395838,3.20357,3121.6,3120.9,0.7842]
[1732002396068,3.97453,3121.4,3120.9,0.7842]
[1732002396759,3.97453,3121.4,3120.9,1.104]
[1732002397978,3.20389,3121.2,3120.9,1.104]
[1732002398351,3.97453,3121.4,3120.9,1.104]
[1732002398587,7.1783,3121.4,3120.9,1.104]
[1732002398989,3.20381,3121.3,3120.9,1.104]
[1732002399739,3.2039,3121.2,3120.9,1.104]
[1732002400388,3.20417,3121.0,3120.5,35.0]
[1732002400883,3.20417,3121.0,3120.3,4.00353]
[1732002401258,3.20424,3120.9,3120.3,4.00353]
[1732002401458,3.20424,3120.9,3120.4,0.3198]
[1732002402884,3.95564,3120.9,3120.4,0.3198]
[1732002403086,3.20431,3120.8,3120.4,0.3198]
[1732002404056,3.20458,3120.6,3120.5,0.3198]
[1732002404262,3.20431,3120.8,3120.5,0.3198]
[1732002404476,3.20442,3120.7,3120.5,0.3198]
[1732002404999,3.01,3121.5,3119.7,0.9562713]
[1732002405000,0.795,3120.3,3119.7,0.9562713]
[1732002405286,3.20493,3120.2,3119.7,0.9562713]
[1732002405850,3.20493,3120.2,3119.7,4.1616813]
[1732002406057,3.20493,3120.2,3119.7,4.1617013]
[1732002406260,3.20493,3120.2,3119.7,0.9562713]
[1732002406797,0.795,3120.3,3119.7,0.9562713]
[1732002406969,0.7935,3120.6,3120.1,3.20496]
[1732002407173,0.320454,3120.5,3120.1,3.20496]
[1732002407592,3.99802,3120.6,3120.1,3.20496]
[1732002407859,3.99802,3120.6,3119.9,3.20515]
[1732002408170,0.7935,3120.6,3120.1,3.20496]
[1732002408356,4.00461,3120.9,3120.3,3.20477]
[1732002409299,3.20431,3120.8,3120.3,3.20477]
[1732002409473,3.20431,3120.8,3120.2,0.8235]
[1732002409858,3.20431,3120.8,3120.2,4.02841]
[1732002410008,4.00469,3120.9,3120.2,4.02841]
[1732002410215,0.400469,3120.8,3120.2,4.02841]
[1732002410610,0.400469,3120.8,3120.3,3.20478]
[1732002410912,0.8004,3120.9,3120.5,3.20457]
[1732002411284,0.3345418,3120.7,3120.5,3.20457]
[1732002411513,0.3345418,3120.7,3120.3,3.20474]
[1732002412318,0.3345418,3120.7,3120.2,0.8235]
[1732002412476,1.08889398,3120.7,3120.2,0.8235]
[1732002412664,1.08889398,3120.7,3120.1,3.20499]
[1732002412665,3.5390118,3120.7,3120.1,3.20499]
[1732002413312,3.5390118,3120.7,3119.9,4.02519]
[1732002413483,0.799,3120.4,3120.1,3.20501]
[1732002413818,3.5390118,3120.7,3120.1,3.20501]
[1732002414107,3.95692,3120.6,3119.9,7.23034]
[1732002414265,0.7524,3120.6,3120.0,3.20506]
[1732002416620,3.20478,3120.4,3120.1,0.3202]
[1732002416917,3.20482,3120.3,3120.1,0.3202]
[1732002417088,3.2047,3120.5,3120.1,0.3202]
[1732002417456,3.20473,3120.4,3120.1,0.3202]
[1732002417748,3.20482,3120.3,3119.9,0.3202]
[1732002418643,3.20473,3120.4,3119.7,6.22405241]
[1732002418644,3.20493,3120.2,3119.8,0.3202]
[1732002418853,0.7844,3120.1,3119.8,0.3202]
[1732002419016,0.7844,3120.1,3119.7,3.01870241]
[1732002419017,0.7844,3120.1,3119.7,0.1417713]
[1732002419217,3.20519,3120.0,3119.7,0.1417713]
[1732002419408,3.924708,3119.9,3119.7,0.1417713]
[1732002419603,3.20524,3119.9,3119.7,0.1417713]
[1732002420268,3.98973,3119.8,3119.7,0.1417713]
[1732002420652,6.98973,3119.8,3119.7,0.1417713]
[1732002422652,3.98973,3119.8,3119.7,0.1417713]
[1732002422898,4.709227,3119.8,3119.7,0.1417713]
[1732002423592,4.709227,3119.8,3119.7,1.3e-06]
[1732002423593,8.269227,3119.8,3119.7,1.3e-06]
[1732002425465,9.15952856,3119.8,3119.7,1.3e-06]
[1732002426570,9.49409846,3119.8,3119.7,1.3e-06]
[1732002427218,4.03445,3118.9,3117.9,0.875]
[1732002427381,3.20699,3118.2,3117.9,0.875]
[1732002428302,3.99889,3118.2,3117.9,0.875]
[1732002428696,0.7919,3118.2,3117.9,0.875]
[1732002428901,0.8172,3118.4,3117.9,4.08219]
[1732002430075,0.8172,3118.4,3118.0,3.20713]
[1732002430271,0.8172,3118.7,3118.1,3.20702]
[1732002430586,0.3610915,3118.6,3118.2,0.8248]
[1732002430791,0.8091,3119.1,3118.5,3.20662]
[1732002431015,0.401513,3119.0,3118.5,3.20662]
[1732002431217,0.401513,3119.0,3118.5,3.20661]
[1732002431678,0.8091,3119.1,3118.7,3.20638]
[1732002431874,0.8091,3119.5,3118.7,0.7999]
[1732002432116,4.3490299,3119.8,3118.7,0.7999]
[1732002432286,4.3490299,3119.8,3119.3,4.00566]
[1732002432287,0.83447746,3119.8,3119.3,4.00566]
[1732002432674,0.83447746,3119.8,3119.0,3.20609]
[1732002432675,3.20554,3119.6,3119.0,3.20609]
[1732002433080,3.20554,3119.6,3119.0,3.20614]
[1732002433291,3.20554,3119.6,3118.9,4.00612]
[1732002433292,3.20576,3119.4,3118.9,0.7999]
[1732002433776,0.7859,3119.5,3118.7,3.20645]
[1732002433978,3.99162,3119.5,3118.6,0.7911]
[1732002434320,3.20581,3119.4,3118.7,3.57326311]
[1732002434532,3.20585,3119.3,3118.7,3.20646]
[1732002434818,0.7859,3119.5,3118.6,0.7911]
[1732002435018,0.7859,3119.5,3119.0,3.20605]
[1732002435390,3.99161,3119.5,3118.8,3.20636]
[1732002436327,3.20578,3119.4,3118.8,3.20636]
[1732002436830,3.99161,3119.5,3118.8,3.20636]
[1732002437130,3.20577,3119.4,3118.8,3.20636]
[1732002437432,3.20577,3119.4,3118.6,4.36443311]
[1732002437433,0.7859,3119.5,3119.0,3.20607]
[1732002437614,3.0,3119.6,3119.2,3.20591]
[1732002438106,3.0,3119.6,3119.0,3.20607]
[1732002438317,3.0,3119.6,3119.1,3.20605]
[1732002439018,4.1312699,3119.8,3119.2,3.20591]
[1732002439229,7.3366999,3119.8,3119.2,3.20591]
[1732002439393,7.3366999,3119.8,3119.0,3.20607]
[1732002439394,3.20557,3119.6,3119.0,3.20607]
[1732002439581,7.3366699,3119.8,3119.1,0.7925]
[1732002439780,4.1312699,3119.8,3119.1,0.7925]
[1732002440204,7.3366199,3119.8,3119.1,0.7925]
[1732002440448,1.1312699,3119.8,3119.1,0.7925]
[1732002440610,3.0,3119.7,3119.1,7.20442]
[1732002440821,1.1312699,3119.8,3119.3,3.20575]
[1732002441219,1.86491589,3119.8,3119.3,3.20575]
[1732002441604,1.06821589,3119.8,3119.6,3.2055]
[1732002441807,0.3345699,3119.8,3119.7,3.20543]
[1732002442151,0.3345699,3119.8,3119.7,4.03773]
[1732002445435,0.8,3122.1,3120.8,0.7942]
[1732002445772,0.7708,3122.4,3121.7,3.2033]
[1732002445939,0.7708,3122.4,3121.9,3.20308]
[1732002445940,1.168138,3122.4,3121.9,3.20308]
[1732002446147,0.7708,3122.4,3122.1,3.20294]
[1732002446445,3.97317,3122.7,3122.1,3.20294]
[1732002446624,3.97317,3122.7,3122.0,3.20304]
[1732002447177,3.20255,3122.6,3121.9,3.20316]
[1732002447325,3.20258,3122.5,3121.9,3.602196]
[1732002448074,3.20258,3122.5,3121.9,0.399036]
[1732002448370,3.20258,3122.5,3121.9,3.602186]
[1732002448732,3.20258,3122.5,3121.9,0.399036]
[1732002449440,3.20258,3122.5,3122.0,0.3602266]
[1732002449643,3.0,3122.6,3122.0,0.3602266]
[1732002450153,3.0,3122.6,3122.0,3.5632966]
[1732002450471,3.20275,3122.4,3121.9,0.399036]
[1732002450769,0.7708,3122.7,3121.7,0.7872]
[1732002450770,3.20286,3122.3,3121.7,0.7872]
[1732002450970,3.20256,3122.5,3121.7,0.7872]
[1732002451196,3.20285,3122.3,3121.7,3.99052]
[1732002451394,3.20256,3122.5,3121.8,3.922637]
[1732002451993,3.20267,3122.4,3121.8,3.922637]
[1732002452179,3.20267,3122.4,3121.8,0.719397]
[1732002452590,3.20267,3122.4,3121.8,3.922667]
[1732002453095,6.97318,3122.7,3121.9,3.20315]
[1732002453096,3.0,3122.5,3121.9,3.20315]
[1732002453297,6.2026,3122.5,3121.9,0.7913017]
[1732002453592,6.2026,3122.5,3121.9,3.9944617]
[1732002453792,6.2026,3122.5,3121.7,0.7872]
[1732002453793,3.20266,3122.4,3121.7,3.99051]
[1732002454097,3.20266,3122.4,3121.8,3.20327]
[1732002455048,3.2027,3122.4,3121.7,3.9905]
[1732002455303,3.0,3122.5,3122.0,3.20306]
[1732002456359,3.0,3122.6,3121.8,0.719394]
[1732002456700,3.0,3122.6,3121.7,0.7872]
[1732002457004,3.97323,3122.7,3122.2,3.20283]
[1732002457005,0.7708,3122.7,3122.2,3.20283]
[1732002457899,0.7708,3122.7,3122.0,3.20306]
[1732002458083,3.97317,3122.7,3122.1,0.320306]
[1732002458469,0.7708,3122.7,3122.2,3.20286]
[1732002458675,3.0,3122.8,3122.2,3.20286]
[1732002458676,6.20226,3122.8,3122.2,3.20286]
[1732002458886,3.20237,3122.7,3122.1,3.523236]
[1732002459091,3.20237,3122.7,3122.2,0.3523296]
[1732002459390,3.20237,3122.7,3122.2,3.5551796]
[1732002460214,3.0,3122.8,3122.2,3.5551796]
[1732002460421,3.0,3122.8,3122.3,0.35551796]
[1732002460624,3.0,3122.7,3122.3,0.35551796]
[1732002460783,3.0,3122.7,3122.3,1.10811796]
[1732002461285,0.33434793,3122.6,3122.3,1.10811796]
[1732002461478,0.33434793,3122.6,3122.3,0.7526]
[1732002461903,0.33434793,3122.6,3122.4,3.20265]
[1732002463023,3.0,3123.1,3122.3,0.7526]
[1732002463175,3.20216,3122.9,3122.3,3.20274]
[1732002463680,3.20231,3122.8,3122.1,3.20292]
[1732002464225,3.20216,3122.9,3122.2,3.2028]
[1732002464437,3.20229,3122.8,3122.2,3.2028]
[1732002465488,3.20229,3122.8,3122.2,3.20284]
[1732002466828,3.872727,3122.8,3122.2,3.20284]
[1732002467041,3.20239,3122.7,3122.2,3.20284]
[1732002467404,3.20239,3122.7,3122.0,3.9556]
[1732002467590,3.20262,3122.5,3122.0,0.7526]
[1732002468719,3.20238,3122.7,3122.0,0.7526]
[1732002468924,3.20238,3122.7,3122.0,3.95566]
[1732002469641,3.20238,3122.7,3122.0,7.15865]
[1732002469789,3.20238,3122.7,3122.1,3.20292]
[1732002470610,0.8151,3122.8,3122.1,3.20297]
[1732002470810,0.8151,3122.8,3122.3,3.20276]
[1732002471635,4.01735,3122.8,3122.3,3.20276]
[1732002472029,0.8151,3122.8,3122.3,3.20276]
[1732002472434,3.20208,3123.0,3122.4,3.20259]
[1732002472833,3.20208,3123.0,3122.5,0.8319]
[1732002474750,3.65363453,3123.1,3122.5,4.03442]
[1732002474901,3.0,3123.1,3122.6,3.20237]
[1732002475659,6.20196,3123.1,3122.6,3.20237]
[1732002475808,3.0,3123.1,3122.6,3.20237]
[1732002476361,6.20199,3123.1,3122.6,3.20237]
[1732002476736,3.0,3123.1,3122.6,3.20237]
[1732002477354,6.20197,3123.1,3122.6,3.20237]
[1732002477527,3.20187,3123.2,3122.6,3.926062]
[1732002477862,1.11795532,3123.3,3122.6,3.926062]
[1732002477863,3.20197,3123.1,3122.6,0.723692]
[1732002479472,3.20197,3123.1,3122.5,4.03445]
[1732002479766,3.20216,3122.9,3122.5,0.8319]
[1732002479931,1.11795532,3123.3,3122.1,0.7727]
[1732002480133,3.20222,3122.9,3122.3,3.20268]
[1732002480332,0.8016,3122.8,3122.2,3.20278]
[1732002480546,3.20239,3122.7,3122.2,3.20278]
[1732002481136,3.20256,3122.5,3122.1,0.7727]
[1732002481341,3.20267,3122.4,3121.9,3.20317]
[1732002481553,3.20239,3122.7,3121.9,3.52349]
[1732002481752,3.20239,3122.7,3122.1,3.20296]
[1732002481973,3.20239,3122.7,3122.2,3.20285]
[1732002482171,3.20239,3122.7,3122.1,3.20296]
[1732002482339,3.20239,3122.7,3122.0,0.429379]
[1732002482527,3.20255,3122.6,3122.0,3.632399]
[1732002482728,3.20256,3122.5,3122.0,0.429379]
[1732002484076,3.20277,3122.3,3122.0,0.429379]
[1732002484242,3.20277,3122.3,3121.9,0.32032]
[1732002484657,3.20256,3122.5,3121.9,0.32032]
[1732002484866,3.2026,3122.5,3121.9,3.52347]
[1732002485580,3.20268,3122.4,3121.9,3.52347]
[1732002485926,3.2026,3122.5,3121.9,3.52347]
[1732002486173,3.2026,3122.5,3122.0,0.429377]
[1732002486481,3.2026,3122.5,3122.0,3.632427]
[1732002486663,3.20266,3122.4,3122.0,0.429377]
[1732002486844,3.20266,3122.4,3121.9,0.32032]
[1732002487362,3.20266,3122.4,3121.8,3.97349]
[1732002487363,3.20294,3122.2,3121.8,0.7703]
[1732002487676,3.96114,3122.5,3121.9,3.20315]
[1732002487845,3.20272,3122.4,3121.8,0.7703]
[1732002488759,3.20247,3122.6,3121.8,0.7703]
[1732002488971,3.20247,3122.6,3122.0,3.20299]
[1732002489201,3.20247,3122.6,3122.0,3.600319]
[1732002489787,3.20247,3122.6,3122.0,0.397329]
[1732002490282,3.20256,3122.5,3122.0,0.397329]
[1732002492955,3.20235,3122.7,3122.0,0.397329]